bitfinex/quotes_SOLUSD_20230113
["timestamp","ask_amount","ask_price","bid_price","bid_amount"]
[1673615787202,45.29,16.562,16.549,9.0]
[1673615787384,45.29,16.563,16.549,9.0]
[1673615787595,20.0,16.564,16.551,10.0]
[1673615787841,20.0,16.567,16.551,168.8948]
[1673615788016,45.28,16.566,16.551,168.8948]
[1673615788227,20.0,16.565,16.551,168.8948]
[1673615788783,20.0,16.567,16.551,167.8948]
[1673615788993,62.28,16.566,16.551,167.8948]
[1673615789186,20.0,16.565,16.551,177.8948]
[1673615791078,20.0,16.565,16.551,176.8948]
[1673615792450,20.0,16.567,16.551,176.8948]
[1673615792652,20.0,16.567,16.552,10.0]
[1673615792862,20.0,16.568,16.553,45.31]
[1673615793287,20.0,16.568,16.554,10.0]
[1673615793495,20.0,16.568,16.555,45.31]
[1673615793712,20.0,16.568,16.556,10.0]
[1673615794329,57.72,16.57,16.556,10.0]
[1673615794330,20.0,16.569,16.556,10.0]
[1673615794973,57.72,16.57,16.556,10.0]
[1673615795188,43.30290385,16.575,16.556,10.0]
[1673615795189,45.26,16.574,16.558,10.0]
[1673615795494,45.26,16.574,16.56,12.46]
[1673615795710,118.5515,16.577,16.561,10.0]
[1673615795711,45.25,16.576,16.561,10.0]
[1673615796220,45.25,16.577,16.561,55.29]
[1673615796552,45.25,16.577,16.562,10.0]
[1673615796765,45.25,16.577,16.563,45.29]
[1673615797290,45.25,16.577,16.564,10.0]
[1673615797697,20.0,16.576,16.564,10.0]
[1673615803909,65.24,16.579,16.565,45.28]
[1673615804106,65.24,16.579,16.566,10.0]
[1673615804319,20.0,16.579,16.566,10.0]
[1673615804541,45.24,16.581,16.566,10.0]
[1673615804542,45.25,16.578,16.566,10.0]
[1673615804759,20.0,16.577,16.566,10.0]
[1673615805274,20.0,16.58,16.566,10.0]
[1673615805487,45.24,16.579,16.566,10.0]
[1673615805803,20.0,16.578,16.566,10.0]
[1673615806016,45.25,16.577,16.566,10.0]
[1673615806327,20.0,16.576,16.566,10.0]
[1673615806833,20.0,16.58,16.566,10.0]
[1673615807038,45.24,16.579,16.566,10.0]
[1673615807272,20.0,16.578,16.566,10.0]
[1673615807456,45.25,16.577,16.566,10.0]
[1673615807666,20.0,16.576,16.566,10.0]
[1673615808305,45.24,16.581,16.566,10.0]
[1673615808531,45.22,16.586,16.57,12.45]
[1673615808748,20.0,16.585,16.57,12.45]
[1673615808945,45.23,16.584,16.571,45.26]
[1673615809156,45.23,16.584,16.57,57.72]
[1673615809366,45.22,16.586,16.571,10.0]
[1673615810210,45.22,16.586,16.572,45.26]
[1673615810440,45.22,16.589,16.573,10.0]
[1673615810949,45.2,16.594,16.574,20.0]
[1673615811157,45.2,16.594,16.575,45.25]
[1673615811371,45.2,16.594,16.577,10.0]
[1673615811571,45.2,16.594,16.578,220.2097]
[1673615811782,45.2,16.594,16.579,10.0]
[1673615814826,45.2,16.594,16.579,55.24]
[1673615815567,45.2,16.595,16.579,55.24]
[1673615815891,20.0,16.594,16.579,55.24]
[1673615818820,20.0,16.594,16.58,12.5]
[1673615819029,45.19,16.598,16.581,55.24]
[1673615819238,45.19,16.599,16.583,10.0]
[1673615819451,45.19,16.599,16.584,174.5484]
[1673615820197,45.19,16.599,16.585,10.0]
[1673615820385,45.19,16.599,16.586,20.0]
[1673615821238,45.19,16.599,16.588,10.0]
[1673615821445,45.18,16.603,16.587,115.19419628]
[1673615821671,45.18,16.603,16.588,45.22]
[1673615822315,45.17,16.604,16.589,10.0]
[1673615824302,45.17,16.604,16.587,125.19419628]
[1673615824303,12.51,16.6,16.587,115.19419628]
[1673615824507,12.51,16.6,16.585,55.23]
[1673615824715,65.19,16.599,16.585,10.0]
[1673615824945,65.19,16.599,16.582,45.23]
[1673615825152,65.19,16.599,16.58,12.38]
[1673615825153,65.19,16.599,16.581,55.24]
[1673615825548,45.19,16.599,16.585,10.0]
[1673615825761,98.58,16.605,16.585,10.0]
[1673615825762,45.18,16.602,16.586,45.22]
[1673615825972,45.17,16.604,16.586,45.22]
[1673615826201,45.17,16.604,16.587,10.0]
[1673615826415,45.17,16.604,16.588,45.22]
[1673615826605,45.17,16.604,16.587,10.0]
[1673615826815,45.17,16.604,16.588,45.22]
[1673615827160,98.58,16.605,16.591,10.0]
[1673615827353,98.58,16.605,16.591,55.21]
[1673615828287,65.17,16.604,16.588,55.22]
[1673615828725,65.17,16.604,16.588,10.0]
[1673615829774,20.0,16.604,16.59,12.5]
[1673615829968,20.0,16.606,16.59,22.5]
[1673615830294,45.17,16.605,16.59,22.5]
[1673615830506,20.0,16.604,16.59,22.5]
[1673615830708,45.18,16.603,16.59,22.5]
[1673615831257,45.18,16.603,16.59,10.0]
[1673615832299,20.0,16.604,16.59,10.0]
[1673615832609,45.18,16.603,16.59,10.0]
[1673615832838,45.17,16.605,16.59,10.0]
[1673615833052,20.0,16.604,16.59,10.0]
[1673615833257,45.18,16.603,16.59,10.0]
[1673615833456,20.0,16.604,16.59,67.71]
[1673615833671,20.0,16.605,16.59,67.71]
[1673615833879,45.17,16.604,16.59,67.71]
[1673615834844,20.0,16.605,16.59,67.71]
[1673615835040,20.0,16.606,16.59,67.71]
[1673615835250,45.17,16.605,16.59,67.71]
[1673615835476,20.0,16.604,16.59,22.5]
[1673615835997,20.0,16.604,16.59,10.0]
[1673615836204,20.0,16.606,16.59,10.0]
[1673615836519,45.17,16.605,16.59,10.0]
[1673615836735,20.0,16.604,16.59,10.0]
[1673615837350,20.0,16.606,16.59,10.0]
[1673615837560,45.17,16.605,16.59,10.0]
[1673615837771,20.0,16.604,16.59,10.0]
[1673615838311,20.0,16.606,16.59,10.0]
[1673615838513,45.17,16.605,16.59,10.0]
[1673615838722,20.0,16.604,16.59,10.0]
[1673615839351,20.0,16.605,16.59,10.0]
[1673615839549,45.17,16.604,16.59,10.0]
[1673615839883,45.17,16.605,16.59,10.0]
[1673615840093,20.0,16.604,16.59,10.0]
[1673615840811,20.0,16.605,16.59,10.0]
[1673615841015,45.17,16.604,16.59,10.0]
[1673615841251,45.17,16.605,16.59,10.0]
[1673615841438,20.0,16.604,16.59,10.0]
[1673615842069,20.0,16.606,16.59,10.0]
[1673615842288,45.17,16.605,16.59,10.0]
[1673615842509,20.0,16.604,16.59,10.0]
[1673615842920,45.18,16.603,16.59,10.0]
[1673615843872,20.0,16.604,16.59,10.0]
[1673615844100,20.0,16.606,16.59,10.0]
[1673615844278,45.17,16.605,16.59,10.0]
[1673615844492,20.0,16.604,16.59,10.0]
[1673615845221,20.0,16.606,16.59,10.0]
[1673615845427,45.17,16.605,16.59,10.0]
[1673615845769,20.0,16.604,16.59,10.0]
[1673615846286,20.0,16.606,16.59,10.0]
[1673615846492,47.56696354,16.61,16.591,1248.6]
[1673615846493,45.17,16.605,16.591,1248.6]
[1673615846816,45.16,16.608,16.592,45.21]
[1673615847015,45.16,16.611,16.593,10.0]
[1673615847240,45.16,16.611,16.594,20.0]
[1673615847545,45.16,16.611,16.595,10.0]
[1673615847745,45.15,16.612,16.596,20.0]
[1673615848074,16.47,16.61,16.596,20.0]
[1673615848387,45.16,16.609,16.596,20.0]
[1673615849437,45.16,16.609,16.597,10.0]
[1673615850899,45.16,16.609,16.596,138.766]
[1673615852993,45.16,16.609,16.597,10.0]
[1673615853849,17.0,16.608,16.596,138.766]
[1673615854685,45.17,16.607,16.596,138.766]
[1673615854902,44.17,16.607,16.596,138.766]
[1673615855436,45.16,16.609,16.596,138.766]
[1673615855743,45.16,16.609,16.597,10.0]
[1673615855932,12.32,16.61,16.597,10.0]
[1673615856142,45.16,16.609,16.597,10.0]
[1673615859635,57.48,16.61,16.597,10.0]
[1673615859828,12.32,16.61,16.597,10.0]
[1673615860046,45.16,16.611,16.597,10.0]
[1673615860259,45.16,16.611,16.597,55.19]
[1673615860581,76.24696354,16.611,16.597,55.19]
[1673615860897,31.08696354,16.611,16.597,55.19]
[1673615861610,31.08696354,16.612,16.597,55.19]
[1673615862655,31.08696354,16.611,16.597,55.19]
[1673615863844,31.08696354,16.612,16.597,55.19]
[1673615864163,31.08696354,16.611,16.598,10.0]
[1673615864908,31.08696354,16.612,16.598,10.0]
[1673615865512,76.23696354,16.613,16.598,10.0]
[1673615865730,31.08696354,16.613,16.598,10.0]
[1673615865943,76.23696354,16.613,16.598,10.0]
[1673615866365,45.15,16.613,16.6,12.37]
[1673615866572,140.97246354,16.618,16.601,45.18]
[1673615866573,45.14,16.618,16.601,45.18]
[1673615866782,45.13,16.619,16.603,10.0]
[1673615866994,29.8800799,16.618,16.604,65.17]
[1673615867520,29.8800799,16.618,16.605,118.6896]
[1673615867846,29.8800799,16.618,16.607,10.0]
[1673615868690,12.37,16.62,16.607,10.0]
[1673615868894,76.21696354,16.619,16.601,10.0]
[1673615869116,10.17682808,16.606,16.601,10.0]
[1673615869305,45.14,16.616,16.601,10.0]
[1673615869516,20.0,16.615,16.601,10.0]
[1673615869945,20.0,16.615,16.601,55.18]
[1673615870272,20.0,16.617,16.602,10.0]
[1673615870452,45.14,16.616,16.602,10.0]
[1673615870666,20.0,16.615,16.602,10.0]
[1673615871319,20.0,16.617,16.602,10.0]
[1673615871634,45.14,16.616,16.602,10.0]
[1673615871846,20.0,16.615,16.602,10.0]
[1673615872365,20.0,16.617,16.602,10.0]
[1673615872577,45.14,16.616,16.602,10.0]
[1673615872780,20.0,16.615,16.602,10.0]
[1673615873107,45.15,16.614,16.601,10.0]
[1673615873926,20.0,16.615,16.601,10.0]
[1673615874166,20.0,16.617,16.601,10.0]
[1673615874350,45.14,16.616,16.602,45.18]
[1673615874558,20.0,16.615,16.602,45.18]
[1673615874776,20.0,16.615,16.601,55.18]
[1673615875196,20.0,16.617,16.601,55.18]
[1673615875513,45.14,16.616,16.601,55.18]
[1673615875712,20.0,16.615,16.601,55.18]
[1673615875925,20.0,16.615,16.6,12.31]
[1673615876132,45.15,16.614,16.6,12.31]
[1673615879092,45.15,16.614,16.6,22.31]
[1673615879532,20.0,16.615,16.6,67.5]
[1673615879744,20.0,16.617,16.6,67.5]
[1673615880059,20.0,16.617,16.601,10.0]
[1673615880258,45.14,16.616,16.601,10.0]
[1673615880475,20.0,16.615,16.601,10.0]
[1673615881010,20.0,16.615,16.602,45.18]
[1673615881310,20.0,16.617,16.601,55.18]
[1673615881532,45.14,16.616,16.601,55.18]
[1673615881727,20.0,16.615,16.601,55.18]
[1673615882144,45.14,16.618,16.601,55.18]
[1673615882353,45.13,16.619,16.602,20.0]
[1673615882564,45.13,16.619,16.604,10.0]
[1673615882777,45.13,16.619,16.605,65.17]
[1673615883198,45.13,16.619,16.606,10.0]
[1673615885838,12.37,16.62,16.606,10.0]
[1673615886029,45.13,16.622,16.606,10.0]
[1673615886771,45.13,16.622,16.608,10.0]
[1673615890463,45.13,16.622,16.61,12.37]
[1673615890665,96.3603,16.623,16.61,12.37]
[1673615891069,45.13,16.622,16.61,12.37]
[1673615892326,45.11,16.629,16.611,45.16]
[1673615892559,45.11,16.629,16.613,10.0]
[1673615892771,45.1,16.631,16.614,20.0]
[1673615892967,45.1,16.631,16.615,10.0]
[1673615893488,45.1,16.631,16.616,45.14]
[1673615893918,45.1,16.631,16.617,10.0]
[1673615896770,117.8119,16.632,16.617,10.0]
[1673615897605,45.1,16.631,16.617,10.0]
[1673615898006,117.8119,16.632,16.617,10.0]
[1673615898551,45.1,16.631,16.617,10.0]
[1673615899172,45.1,16.631,16.62,12.37]
[1673615899377,117.8119,16.632,16.62,12.37]
[1673615900233,45.1,16.631,16.62,12.37]
[1673615903797,45.1,16.631,16.618,10.0]
[1673615904001,12.37,16.63,16.614,112.9224]
[1673615904330,82.11,16.629,16.61,12.25]
[1673615921463,82.11,16.629,16.607,125.2516]
[1673615921780,126.3100447,16.629,16.607,115.2516]
[1673615922517,12.32,16.62,16.607,115.2516]
[1673615922731,45.13,16.619,16.607,115.2516]
[1673615927016,12.32,16.62,16.607,115.2516]
[1673615928073,12.32,16.62,16.608,10.0]
[1673615928490,45.12,16.624,16.608,10.0]
[1673615929662,45.12,16.624,16.609,45.16]
[1673615929865,45.11,16.628,16.61,10.0]
[1673615930063,20.0,16.627,16.61,10.0]
[1673615930274,45.11,16.626,16.61,10.0]
[1673615930499,20.0,16.625,16.61,22.33]
[1673615930712,20.0,16.625,16.611,45.16]
[1673615931031,20.0,16.625,16.612,10.0]
[1673615931219,20.0,16.628,16.612,10.0]
[1673615932282,45.11,16.627,16.612,10.0]
[1673615932614,20.0,16.626,16.612,10.0]
[1673615933221,20.0,16.628,16.612,10.0]
[1673615933429,20.0,16.628,16.613,45.15]
[1673615933640,20.0,16.63,16.613,45.15]
[1673615933869,45.11,16.629,16.613,45.15]
[1673615934082,20.0,16.628,16.614,10.0]
[1673615934292,45.11,16.629,16.614,10.0]
[1673615934609,45.1,16.631,16.615,45.14]
[1673615934918,45.09,16.636,16.615,156.6802]
[1673615935132,45.09,16.636,16.616,10.0]
[1673615935317,45.09,16.636,16.617,45.14]
[1673615935532,45.09,16.636,16.618,10.0]
[1673615936377,20.0,16.635,16.62,12.37]
[1673615936915,20.0,16.635,16.62,22.37]
[1673615937537,45.09,16.634,16.62,22.37]
[1673615938683,20.0,16.635,16.621,10.0]
[1673615941665,45.09,16.634,16.62,22.37]
[1673615941850,20.0,16.635,16.62,22.37]
[1673615942392,15.0,16.635,16.62,22.37]
[1673615944371,12.27,16.64,16.62,22.37]
[1673615944372,20.0,16.636,16.62,22.37]
[1673615944582,45.09,16.635,16.62,22.37]
[1673615944787,45.09,16.636,16.62,22.37]
[1673615945002,20.0,16.635,16.62,22.37]
[1673615945647,20.0,16.637,16.62,22.37]
[1673615945860,45.09,16.636,16.62,22.37]
[1673615946057,20.0,16.635,16.62,22.37]
[1673615946689,20.0,16.637,16.62,22.37]
[1673615946899,45.09,16.636,16.62,22.37]
[1673615947222,20.0,16.635,16.62,22.37]
[1673615947432,45.09,16.634,16.622,10.0]
[1673615947642,20.0,16.635,16.622,10.0]
[1673615947851,20.0,16.637,16.622,10.0]
[1673615948069,45.09,16.636,16.622,10.0]
[1673615948275,20.0,16.635,16.622,10.0]
[1673615948690,20.0,16.637,16.622,10.0]
[1673615949018,45.09,16.636,16.622,10.0]
[1673615949235,20.0,16.635,16.622,10.0]
[1673615949533,20.0,16.635,16.62,12.37]
[1673615949723,62.09,16.634,16.615,156.6802]
[1673615949939,12.37,16.63,16.615,111.5402]
[1673615950157,12.37,16.63,16.615,156.6802]
[1673615950583,45.09,16.634,16.616,10.0]
[1673615950786,45.09,16.634,16.617,45.14]
[1673615950992,45.09,16.634,16.618,10.0]
[1673615951214,45.09,16.634,16.619,45.13]
[1673615954160,45.09,16.634,16.62,10.0]
[1673615954352,20.0,16.635,16.62,10.0]
[1673615954562,45.09,16.634,16.62,10.0]
[1673615954878,45.09,16.636,16.62,10.0]
[1673615955087,45.09,16.636,16.621,1248.6]
[1673615955299,1337.27337804,16.639,16.622,55.13]
[1673615955300,45.08,16.638,16.622,55.13]
[1673615955509,45.08,16.638,16.623,20.0]
[1673615956157,45.08,16.638,16.623,149.939]
[1673615956666,45.08,16.638,16.624,10.0]
[1673615957104,45.08,16.638,16.623,149.939]
[1673615957824,45.08,16.638,16.623,195.059]
[1673615958245,1289.0,16.639,16.624,10.0]
[1673615959194,45.08,16.638,16.624,10.0]
[1673615961606,45.08,16.638,16.623,149.939]
[1673615963076,45.08,16.638,16.623,139.939]
[1673615963506,45.08,16.638,16.623,185.059]
[1673615964878,45.08,16.638,16.623,139.939]
[1673615965929,45.08,16.638,16.623,185.059]
[1673615966337,45.08,16.638,16.623,139.939]
[1673615966543,93.35337804,16.638,16.622,1228.6]
[1673615966756,12.37,16.63,16.622,1228.6]
[1673615971215,17.0,16.629,16.622,1228.6]
[1673615971429,16.5,16.629,16.622,1228.6]
[1673615971823,1351.17392709,16.639,16.622,1228.6]
[1673615972028,1289.0,16.639,16.624,10.0]
[1673615972243,1289.0,16.639,16.625,45.12]
[1673615972892,45.08,16.638,16.617,45.14]
[1673615973083,45.08,16.638,16.616,111.1495]
[1673615973294,20.0,16.637,16.617,45.14]
[1673615973509,45.09,16.636,16.617,45.14]
[1673615973844,37.0,16.635,16.617,45.14]
[1673615974037,12.32,16.63,16.617,45.14]
[1673615975402,12.32,16.63,16.616,111.1495]
[1673615975727,12.32,16.63,16.617,10.0]
[1673615975917,20.0,16.635,16.618,45.14]
[1673615976133,20.0,16.637,16.62,12.37]
[1673615976338,45.08,16.638,16.621,45.13]
[1673615976570,45.08,16.638,16.623,10.0]
[1673615976759,45.08,16.638,16.624,65.12]
[1673615976972,1334.08,16.639,16.624,20.0]
[1673615977395,1289.0,16.639,16.624,65.12]
[1673615977929,1289.0,16.639,16.624,180.0707]
[1673615978975,1289.0,16.639,16.625,10.0]
[1673615981298,1289.0,16.639,16.624,180.0707]
[1673615981701,1289.0,16.639,16.624,134.9507]
[1673615981913,65.08,16.638,16.623,161.0449]
[1673615982117,17.0,16.637,16.623,115.9249]
[1673615982333,65.09,16.636,16.623,115.9249]
[1673615982553,17.0,16.635,16.623,115.9249]
[1673615983816,17.0,16.635,16.619,45.13]
[1673615984035,17.0,16.635,16.618,119.7919]
[1673615984036,12.27,16.63,16.618,119.7919]
[1673615988654,12.27,16.63,16.617,45.14]
[1673615988872,12.27,16.63,16.615,45.14]
[1673615989051,17.0,16.629,16.615,45.14]
[1673615991509,17.0,16.629,16.612,45.15]
[1673615991909,45.11,16.628,16.612,45.15]
[1673615992119,17.0,16.627,16.612,45.15]
[1673615992665,12.37,16.62,16.612,45.15]
[1673615992977,12.37,16.62,16.611,114.4447]
[1673615993693,12.37,16.62,16.606,45.17]
[1673615993898,17.0,16.619,16.606,45.17]
[1673615994113,12.37,16.62,16.606,45.17]
[1673615996641,12.37,16.62,16.606,44.17]
[1673615997187,12.37,16.62,16.605,161.1143]
[1673615997367,12.37,16.62,16.606,10.0]
[1673615998128,12.37,16.62,16.605,161.1143]
[1673615998849,17.0,16.619,16.605,161.1143]
[1673615999173,17.0,16.619,16.605,45.17]
[1673615999382,45.14,16.618,16.604,45.17]
[1673615999600,17.0,16.619,16.604,45.17]
[1673616000021,12.27,16.62,16.604,45.17]
[1673616000213,12.27,16.62,16.605,10.0]
[1673616000419,12.27,16.62,16.606,45.17]
[1673616001171,12.27,16.62,16.607,10.0]
[1673616001385,12.27,16.62,16.608,45.16]
[1673616002235,12.27,16.62,16.606,45.17]
[1673616002652,17.0,16.619,16.606,45.17]
[1673616002983,82.13,16.619,16.601,1670.38]
[1673616003295,12.27,16.61,16.601,1625.2]
[1673616003510,12.27,16.61,16.601,1228.6]
[1673616004744,12.27,16.61,16.602,45.18]
[1673616006222,12.27,16.61,16.601,1228.6]
[1673616006434,154.7944,16.618,16.602,10.0]
[1673616006644,20.0,16.617,16.602,55.18]
[1673616006854,45.14,16.616,16.602,55.18]
[1673616007064,65.14,16.617,16.602,10.0]
[1673616007281,65.14,16.617,16.602,55.18]
[1673616007922,17.0,16.616,16.602,55.18]
[1673616008110,20.0,16.615,16.602,55.18]
[1673616009496,12.32,16.61,16.602,45.18]
[1673616009706,12.32,16.61,16.601,1228.6]
[1673616010336,12.32,16.61,16.602,10.0]
[1673616010530,20.0,16.615,16.602,10.0]
[1673616010744,12.27,16.62,16.603,65.18]
[1673616011166,160.085,16.629,16.604,10.0]
[1673616011379,20.0,16.628,16.605,45.17]
[1673616011592,45.11,16.627,16.605,157.615]
[1673616011802,20.0,16.626,16.606,10.0]
[1673616012009,20.0,16.626,16.607,45.17]
[1673616012225,20.0,16.627,16.608,10.0]
[1673616012555,20.0,16.627,16.609,45.16]
[1673616012737,20.0,16.628,16.609,45.16]
[1673616012941,20.0,16.628,16.61,10.0]
[1673616013207,20.0,16.628,16.611,45.16]
[1673616013395,160.085,16.629,16.611,45.16]
[1673616014036,17.0,16.628,16.611,45.16]
[1673616014778,20.0,16.627,16.611,45.16]
[1673616014981,17.0,16.626,16.611,45.16]
[1673616015196,20.0,16.625,16.611,45.16]
[1673616016452,17.0,16.624,16.611,45.16]
[1673616016880,17.0,16.624,16.609,45.16]
[1673616017199,20.0,16.625,16.61,10.0]
[1673616017411,20.0,16.628,16.611,45.16]
[1673616017608,17.0,16.627,16.611,45.16]
[1673616017932,20.0,16.626,16.611,45.16]
[1673616020877,17.0,16.625,16.611,45.16]
[1673616022671,20.0,16.626,16.611,45.16]
[1673616022858,20.0,16.628,16.612,10.0]
[1673616023185,45.11,16.629,16.613,65.15]
[1673616023403,29.8800799,16.63,16.614,114.6847]
[1673616023603,29.8800799,16.63,16.615,45.14]
[1673616024015,29.8800799,16.63,16.616,10.0]
[1673616024221,29.8800799,16.63,16.617,45.14]
[1673616024541,111.5376,16.632,16.617,45.14]
[1673616026650,111.5376,16.632,16.617,44.64]
[1673616027915,111.5376,16.632,16.618,10.0]
[1673616028241,111.5376,16.632,16.619,45.13]
[1673616030007,111.5376,16.632,16.616,10.0]
[1673616030008,111.5376,16.632,16.617,45.14]
[1673616030852,17.0,16.631,16.617,45.14]
[1673616031184,111.5376,16.632,16.617,45.14]
[1673616031496,17.0,16.631,16.616,45.14]
[1673616033166,111.5376,16.632,16.616,45.14]
[1673616033377,111.5376,16.632,16.617,10.0]
[1673616033572,111.5376,16.632,16.618,45.14]
[1673616033784,45.09,16.636,16.618,45.14]
[1673616033998,114.2345,16.637,16.618,45.14]
[1673616033999,20.0,16.635,16.62,12.33]
[1673616034213,20.0,16.635,16.621,45.13]
[1673616034736,20.0,16.636,16.621,45.13]
[1673616038014,20.0,16.638,16.621,45.13]
[1673616038208,45.08,16.637,16.621,45.13]
[1673616038416,20.0,16.636,16.621,45.13]
[1673616039272,20.0,16.637,16.621,45.13]
[1673616039502,45.09,16.636,16.621,45.13]
[1673616039698,20.0,16.635,16.621,45.13]
[1673616040317,20.0,16.637,16.621,45.13]
[1673616041485,45.09,16.636,16.621,45.13]
[1673616041697,20.0,16.635,16.62,12.33]
[1673616042221,20.0,16.637,16.62,16.31]
[1673616042424,62.09,16.636,16.62,16.31]
[1673616042743,20.0,16.635,16.618,45.14]
[1673616042940,62.09,16.634,16.616,45.14]
[1673616043371,62.09,16.634,16.615,45.14]
[1673616043789,111.17319322,16.634,16.615,45.14]
[1673616043998,16.32,16.63,16.614,159.8347]
[1673616044212,62.11,16.629,16.614,159.8347]
[1673616044429,17.0,16.629,16.614,159.8347]
[1673616044929,62.11,16.629,16.614,159.8347]
[1673616045140,17.0,16.629,16.614,159.8347]
[1673616045887,45.11,16.628,16.614,114.6847]
[1673616046083,17.0,16.627,16.614,114.6847]
[1673616046289,65.11,16.626,16.611,45.16]
[1673616046514,20.0,16.626,16.611,45.16]
[1673616046820,65.11,16.626,16.611,45.16]
[1673616047050,45.1,16.632,16.611,1273.76]
[1673616047261,45.1,16.633,16.611,1273.76]
[1673616047784,45.1,16.633,16.613,10.0]
[1673616048115,45.1,16.633,16.615,10.0]
[1673616048313,17.0,16.632,16.616,45.14]
[1673616048943,45.1,16.633,16.616,45.14]
[1673616049276,1289.0,16.639,16.616,45.14]
[1673616049277,45.08,16.638,16.616,45.14]
[1673616049481,20.0,16.637,16.617,10.0]
[1673616049689,20.0,16.637,16.618,45.14]
[1673616049889,20.0,16.637,16.62,16.44]
[1673616050098,20.0,16.637,16.621,45.13]
[1673616050315,20.0,16.638,16.621,45.13]
[1673616050842,45.08,16.637,16.621,45.13]
[1673616051051,65.08,16.638,16.621,45.13]
[1673616051791,20.0,16.638,16.621,45.13]
[1673616052112,64.23359154,16.638,16.621,45.13]
[1673616052427,45.08,16.637,16.616,45.14]
[1673616052627,20.0,16.636,16.616,45.14]
[1673616052954,62.09,16.635,16.616,45.14]
[1673616054742,62.09,16.635,16.615,45.14]
[1673616055685,45.09,16.635,16.616,10.0]
[1673616055896,45.09,16.635,16.617,45.14]
[1673616056502,65.09,16.636,16.618,10.0]
[1673616056712,65.09,16.636,16.619,45.13]
[1673616058859,17.0,16.635,16.619,45.13]
[1673616059045,45.09,16.634,16.616,45.14]
[1673616059249,17.0,16.633,16.616,45.14]
[1673616059886,17.0,16.634,16.616,45.14]
[1673616060111,45.1,16.633,16.616,45.14]